fUSD/lending_fUSD_20251123
["ID","MTS","AMOUNT","RATE_DAILY","PERIOD"]
[394764496,1763931078668,-500.0,0.00040273,8]
[394764497,1763931078677,-500.0,0.00040273,8]
[394764498,1763931078686,-573.51,0.00040273,8]
[394764499,1763931078696,-500.0,0.00040273,8]
[394764500,1763931078705,-625.74,0.00040273,8]
[394764501,1763931078714,-581.8,0.00040273,8]
[394764502,1763931078723,-338.98936637,0.00040273,8]
[394764503,1763931078733,-500.0,0.00040273,8]
[394764504,1763931078742,-513.46,0.00040273,8]
[394764505,1763931078751,-500.0,0.00040273,8]
[394764506,1763931078761,-500.0,0.00040273,8]
[394764507,1763931078771,-500.0,0.00040273,8]
[394764508,1763931078780,-500.0,0.00040273,8]
[394764509,1763931078789,-500.0,0.00040273,8]
[394764510,1763931078800,-500.0,0.00040273,8]
[394764511,1763931078810,-525.42,0.00040273,8]
[394764512,1763931078820,-500.0,0.00040273,8]
[394764513,1763931078830,-500.0,0.00040273,8]
[394764514,1763931078840,-500.0,0.00040273,8]
[394764515,1763931078850,-500.0,0.00040273,8]
[394764516,1763931078859,-500.0,0.00040273,8]
[394764517,1763931078868,-500.0,0.00040273,8]
[394764518,1763931078877,-539.45,0.00040273,8]
[394764519,1763931078887,-1243.08,0.00040273,8]
[394764520,1763931078896,-500.0,0.00040273,8]
[394764521,1763931078909,-500.0,0.00040273,8]
[394764522,1763931078919,-500.0,0.00040273,8]
[394764523,1763931078929,-500.0,0.00040273,8]
[394764524,1763931078938,-616.6,0.00040273,8]
[394764525,1763931078947,-949.19,0.00040273,8]
[394764526,1763931078956,-500.0,0.00040273,8]
[394764527,1763931078966,-500.0,0.00040273,8]
[394764528,1763931078975,-500.0,0.00040273,8]
[394764529,1763931078984,-500.0,0.00040273,8]
[394764530,1763931078993,-4332.16,0.00040273,8]
[394764531,1763931079002,-500.0,0.00040273,8]
[394764532,1763931079011,-716.85,0.00040273,8]
[394764533,1763931079022,-612.9,0.00040273,8]
[394764534,1763931079033,-500.0,0.00040273,8]
[394764535,1763931079042,-378.09031473,0.00040273,8]
[394764536,1763931079051,-500.0,0.00040273,8]
[394764537,1763931079062,-601.75262995,0.00040273,8]
[394764538,1763931079072,-500.0,0.00040273,8]
[394764539,1763931079081,-500.0,0.00040273,8]
[394764540,1763931079090,-1000.0,0.00040273,8]
[394764541,1763931079099,-898.64,0.00040273,8]
[394764542,1763931079109,-500.0,0.00040273,8]
[394764543,1763931079119,-500.0,0.00040273,8]
[394764544,1763931079128,-150.0,0.00040273,2]
[394764545,1763931079138,-500.0,0.00040273,8]
[394764546,1763931079147,-150.0,0.00040273,2]
[394764547,1763931079156,-500.0,0.00040273,8]
[394764548,1763931079166,-150.0,0.00040273,2]
[394764549,1763931079175,-500.0,0.00040273,8]
[394764550,1763931079184,-500.0,0.00040273,8]
[394764551,1763931079195,-150.0,0.00040273,2]
[394764552,1763931079204,-500.0,0.00040273,8]
[394764553,1763931079214,-523.55,0.00040273,8]
[394764554,1763931079223,-485.56288652,0.00040273,8]
[394764555,1763931079232,-500.0,0.00040273,2]
[394764556,1763931079242,-500.0,0.00040273,8]
[394764557,1763931079251,-500.0,0.00040273,8]
[394764558,1763931079260,-500.0,0.00040273,8]
[394764559,1763931079271,-500.0,0.00040273,8]
[394764560,1763931079281,-500.0,0.00040273,8]
[394764561,1763931079291,-500.0,0.00040273,8]
[394764562,1763931079300,-500.0,0.00040273,8]
[394764563,1763931079310,-500.0,0.00040273,8]
[394764564,1763931079318,-500.0,0.00040273,8]
[394764565,1763931079328,-528.73,0.00040273,8]
[394764566,1763931079337,-717.22,0.00040273,8]
[394764567,1763931079349,-573.47,0.00040273,8]
[394764568,1763931079359,-1211.28,0.00040273,8]
[394764569,1763931079369,-500.0,0.00040273,8]
[394764570,1763931079378,-150.0,0.00040273,2]
[394764571,1763931079388,-154.23729549,0.00040273,8]
[394764572,1763931079398,-150.0,0.00040273,2]
[394764573,1763931079408,-601.83,0.00040273,8]
[394764574,1763931079417,-500.0,0.00040273,8]
[394764575,1763931079426,-150.0,0.00040273,2]
[394764576,1763931079435,-500.0,0.00040273,8]
[394764577,1763931079445,-500.0,0.00040273,2]
[394764578,1763931079454,-500.0,0.00040273,8]
[394764579,1763931079464,-150.0,0.00040273,2]
[394764580,1763931079474,-2675.0,0.00040273,2]
[394764581,1763931079483,-652.55,0.00040273,8]
[394764582,1763931079493,-417.4,0.00040286,2]
[394764583,1763931079502,-417.4,0.00040286,2]
[394764584,1763931079511,-417.4,0.00040286,2]
[394764585,1763931079520,-417.4,0.00040286,2]
[394764586,1763931079530,-177.6,0.00040286,2]
[394764587,1763931079541,-417.4,0.00040286,2]
[394764588,1763931079551,-169.71,0.00040286,2]
[394764589,1763931079559,-177.6,0.00040286,2]
[394764590,1763931079569,-169.71,0.00040286,2]
[394764591,1763931079578,-177.6,0.00040286,2]
[394764592,1763931079588,-169.71,0.00040286,2]
[394764593,1763931079597,-417.4,0.00040286,2]
[394764594,1763931079607,-177.6,0.00040286,2]
[394764595,1763931079616,-169.71,0.00040286,2]
[394764596,1763931079626,-177.6,0.00040286,2]
[394764597,1763931079636,-169.71,0.00040286,2]
[394764598,1763931079646,-177.6,0.00040286,2]
[394764599,1763931079656,-177.6,0.00040286,2]
[394764600,1763931079665,-169.71,0.00040286,2]
[394764601,1763931079674,-177.6,0.00040286,2]
[394764602,1763931079683,-339.42,0.00040286,2]
[394764603,1763931079693,-177.6,0.00040286,2]
[394764604,1763931079702,-347.6,0.00040286,2]
[394764605,1763931079711,-177.6,0.00040286,2]
[394764606,1763931079720,-417.4,0.00040286,2]
[394764607,1763931079730,-834.8,0.00040286,2]
[394764608,1763931079739,-417.4,0.00040286,2]
[394764609,1763931079748,-417.4,0.00040286,2]
[394764610,1763931079758,-417.4,0.00040286,2]
[394764611,1763931079767,-417.4,0.00040286,2]
[394764612,1763931079776,-417.4,0.00040286,2]
[394764613,1763931079785,-417.4,0.00040286,2]
[394764614,1763931079795,-551.04,0.00040292,2]
[394764615,1763931079803,-150.0,0.00040292,2]
[394764616,1763931079812,-150.0,0.00040292,2]
[394764617,1763931079821,-150.0,0.00040292,2]
[394764618,1763931079831,-150.0,0.00040292,2]
[394764619,1763931079840,-717.17,0.00040292,2]
[394764620,1763931079849,-150.0,0.00040292,2]
[394764621,1763931079858,-381.18,0.00040292,2]
[394764622,1763931079866,-1098.56,0.00040292,2]
[394764623,1763931079875,-150.0,0.00040292,2]
[394764624,1763931079884,-150.0,0.00040292,2]
[394764625,1763931079893,-551.04,0.00040292,2]
[394764626,1763931079902,-150.0,0.00040292,2]
[394764627,1763931079911,-551.04,0.00040292,2]
[394764628,1763931079919,-150.0,0.00040292,2]
[394764629,1763931079928,-150.0,0.00040292,2]
[394764630,1763931079937,-150.0,0.00040292,2]
[394764631,1763931079946,-551.04,0.00040292,2]
[394764632,1763931079955,-150.0,0.00040292,2]
[394764633,1763931079966,-150.0,0.00040292,2]
[394764634,1763931079976,-551.04,0.00040292,2]
[394764635,1763931079985,-300.0,0.00040292,2]
[394764636,1763931079994,-150.0,0.00040292,2]
[394764637,1763931080003,-551.04,0.00040292,2]
[394764638,1763931080012,-150.0,0.00040292,2]
[394764639,1763931080028,-551.04,0.00040292,2]
[394764640,1763931080037,-551.04,0.00040292,2]
[394764641,1763931080046,-1099.58,0.00040292,2]
[394764642,1763931080058,-374.08,0.00040292,2]
[394764643,1763931080070,-355.2,0.00040292,2]
[394764644,1763931080082,-339.42,0.00040292,2]
[394764645,1763931080091,-177.6,0.00040292,2]
[394764646,1763931080102,-177.6,0.00040292,2]
[394764647,1763931080111,-177.6,0.00040292,2]
[394764648,1763931080122,-169.71,0.00040292,2]
[394764649,1763931080131,-179.33,0.00040292,2]
[394764650,1763931080140,-177.6,0.00040292,2]
[394764651,1763931080150,-177.6,0.00040292,2]
[394764652,1763931080159,-169.71,0.00040292,2]
[394764653,1763931080169,-213.24,0.000403,30]
[394764654,1763931080179,-1000.0,0.000403,7]
[394764655,1763931080188,-239.0,0.00040312,20]
[394764656,1763931080198,-221.3137655,0.00040377,120]
[394764657,1763931080207,-1000.0,0.00040381,7]
[394764658,1763931080216,-500.0,0.0004041,2]
[394764659,1763931080226,-150.0,0.0004041,2]
[394764660,1763931080235,-150.0,0.0004041,2]
[394764661,1763931080244,-500.0,0.0004041,2]
[394764662,1763931080254,-2675.0,0.0004041,2]
[394764663,1763931080263,-1096.0,0.00040435,5]
[394764664,1763931080275,-300.566,0.00040438,7]
[394764665,1763931080289,-3206.353,0.0004044,2]
[394764666,1763931080300,-1320.0,0.0004044,2]
[394764667,1763931080309,-1601.0,0.0004044,2]
[394764668,1763931080319,-822.0,0.0004044,2]
[394764669,1763931080328,-1192.0,0.0004044,2]
[394764670,1763931080338,-659.0,0.0004044,2]
[394764671,1763931080348,-1256.0,0.0004044,2]
[394764672,1763931080358,-2659.0,0.0004044,2]
[394764673,1763931080369,-6497.0,0.0004044,2]
[394764674,1763931080379,-252.0,0.0004044,2]
[394764675,1763931080388,-151.0,0.00040491,120]
[394764676,1763931080397,-335.28560065,0.000405,120]
[394764677,1763931080407,-1400.66,0.00040507,30]
[394764678,1763931080416,-1400.66,0.00040507,30]
[394764679,1763931080425,-1400.66,0.00040507,30]
[394764680,1763931080434,-1400.66,0.00040507,30]
[394764681,1763931080445,-500.0,0.00040546,2]
[394764682,1763931080456,-150.0,0.00040547,2]
[394764683,1763931080466,-200.0,0.00040547,2]
[394764684,1763931080476,-150.0,0.00040547,2]
[394764685,1763931080485,-500.0,0.00040547,2]
[394764686,1763931080494,-2675.0,0.00040547,2]
[394764687,1763931080503,-500.0,0.00040547,8]
[394764688,1763931080514,-51.06715697,0.00040547,8]
[394764689,1763931080771,-172.65928,0.00039452,30]
[394764690,1763931080780,-500.0,0.0004,8]
[394764691,1763931080789,-205.013171,0.0004,120]
[394764692,1763931080798,-514.08284303,0.00040547,8]
[394764693,1763931080807,-540.72,0.00040547,8]
[394764694,1763931080816,-500.0,0.00040547,8]
[394764695,1763931080825,-500.0,0.00040547,8]
[394764696,1763931080835,-500.0,0.00040547,8]
[394764697,1763931080846,-500.0,0.00040547,8]
[394764698,1763931080855,-500.0,0.00040547,8]
[394764699,1763931080864,-500.0,0.00040547,8]
[394764700,1763931080873,-500.0,0.00040547,8]
[394764701,1763931080883,-500.0,0.00040547,8]
[394764702,1763931080892,-798.73,0.00040547,8]
[394764703,1763931080903,-500.0,0.00040547,8]
[394764704,1763931080913,-500.0,0.00040547,8]
[394764705,1763931080922,-500.0,0.00040547,8]
[394764706,1763931080931,-500.0,0.00040547,8]
[394764707,1763931080940,-481.87383681,0.00040547,8]
[394764708,1763931080949,-44.86600781,0.00040547,8]
[394764709,1763931081588,-386.39827724,0.00023288,2]
[394764710,1763931081597,-205.013171,0.000389,120]
[394764711,1763931081607,-172.65928,0.000389,30]
[394764712,1763931081619,-205.013171,0.000389,120]
[394764713,1763931081629,-110.06829976,0.00039452,120]
[394764714,1763931081782,-587.90238695,0.00038256,2]
[394764715,1763931081793,-1058.3,0.00038256,2]
[394764716,1763931081804,-5127.29093936,0.00038256,2]
[394764717,1763931081813,-500.0,0.00038356,8]
[394764718,1763931081826,-500.0,0.00038356,8]
[394764719,1763931081836,-229.3883154,0.00038356,8]
[394764720,1763931081845,-500.0,0.00038356,8]
[394764721,1763931081854,-500.0,0.00038356,8]
[394764722,1763931081863,-205.013171,0.000389,120]
[394764723,1763931081873,-94.94487124,0.00039452,120]
[394764724,1763931081882,-172.65928,0.00039452,30]
[394764725,1763931081890,-205.013171,0.00039452,120]
[394764726,1763931081899,-205.013171,0.00039452,120]
[394764727,1763931081908,-172.65928,0.0004,30]
[394764728,1763931081917,-205.013171,0.0004,120]
[394764729,1763931081926,-172.65928,0.0004,30]
[394764730,1763931081935,-205.013171,0.0004,120]
[394764731,1763931081945,-205.013171,0.0004,120]
[394764732,1763931081953,-500.0,0.00040273,8]
[394764733,1763931081963,-177.6,0.00040292,2]
[394764734,1763931081974,-169.71,0.00040292,2]
[394764735,1763931081984,-417.4,0.00040292,2]
[394764736,1763931081993,-561.0,0.0004044,2]
[394764737,1763931082002,-455.13399219,0.00040547,8]
[394764738,1763931082011,-500.0,0.00040547,8]
[394764739,1763931082024,-500.0,0.00040547,8]
[394764740,1763931082035,-500.0,0.00040547,8]
[394764741,1763931082045,-500.0,0.00040547,8]
[394764742,1763931082054,-500.0,0.00040547,8]
[394764743,1763931082064,-500.0,0.00040547,8]
[394764744,1763931082074,-500.0,0.00040547,2]
[394764745,1763931082084,-500.0,0.00040547,8]
[394764746,1763931082092,-500.0,0.00040547,8]
[394764747,1763931082103,-500.0,0.00040547,8]
[394764748,1763931082112,-500.0,0.00040547,8]
[394764749,1763931082122,-500.0,0.00040547,8]
[394764750,1763931082131,-245.65993615,0.00040547,8]
[394764751,1763931082141,-500.0,0.00040547,8]
[394764752,1763931082150,-500.0,0.00040547,8]
[394764753,1763931082159,-500.0,0.00040547,8]
[394764754,1763931082168,-261.61853593,0.00040547,8]
[394764755,1763931082177,-500.0,0.00040547,8]
[394764756,1763931082188,-500.0,0.00040547,8]
[394764757,1763931082197,-500.0,0.00040547,8]
[394764758,1763931082206,-500.0,0.00040547,8]
[394764759,1763931082217,-500.0,0.00040547,8]
[394764760,1763931082226,-500.0,0.00040547,8]
[394764761,1763931082235,-500.0,0.00040547,8]
[394764762,1763931082245,-500.0,0.00040547,8]
[394764763,1763931082254,-500.0,0.00040547,8]
[394764764,1763931082264,-500.0,0.00040547,8]
[394764765,1763931082273,-500.0,0.00040547,8]
[394764766,1763931082283,-151.0,0.00040547,120]
[394764767,1763931082292,-500.0,0.00040547,8]
[394764768,1763931082301,-504.12,0.00040547,8]
[394764769,1763931082310,-151.0,0.00040547,120]
[394764770,1763931082319,-500.0,0.00040547,8]
[394764771,1763931082329,-500.0,0.00040547,8]
[394764772,1763931082339,-602.48,0.00040547,8]
[394764773,1763931082349,-500.0,0.00040547,8]
[394764774,1763931082358,-500.0,0.00040547,8]
[394764775,1763931082367,-500.0,0.00040547,8]
[394764776,1763931082377,-500.0,0.00040547,8]
[394764777,1763931082387,-500.0,0.00040547,8]
[394764778,1763931082396,-500.0,0.00040547,8]
[394764779,1763931082406,-500.0,0.00040547,8]
[394764780,1763931082422,-500.0,0.00040547,8]
[394764781,1763931082435,-500.0,0.00040547,8]
[394764782,1763931082445,-500.0,0.00040547,8]
[394764783,1763931082455,-500.0,0.00040547,8]
[394764784,1763931082466,-500.0,0.00040547,8]
[394764785,1763931082476,-500.0,0.00040547,8]
[394764786,1763931082486,-500.0,0.00040547,8]
[394764787,1763931082495,-500.0,0.00040547,8]
[394764788,1763931082505,-500.0,0.00040547,8]
[394764789,1763931082515,-500.0,0.00040547,8]
[394764790,1763931082525,-500.0,0.00040547,8]
[394764791,1763931082535,-500.0,0.00040547,8]
[394764792,1763931082545,-625.44,0.00040547,8]
[394764793,1763931082555,-500.0,0.00040547,8]
[394764794,1763931082565,-500.0,0.00040547,8]
[394764795,1763931082575,-674.63,0.00040547,8]
[394764796,1763931082585,-654.98,0.00040547,8]
[394764797,1763931082596,-500.0,0.00040547,8]
[394764798,1763931082607,-151.0,0.00040547,120]
[394764799,1763931082617,-500.0,0.00040547,8]
[394764800,1763931082627,-500.0,0.00040547,8]
[394764801,1763931082636,-151.0,0.00040547,120]
[394764802,1763931082645,-500.0,0.00040547,8]
[394764803,1763931082655,-500.0,0.00040547,8]
[394764804,1763931082664,-500.0,0.00040547,8]
[394764805,1763931082674,-500.0,0.00040547,8]
[394764806,1763931082683,-500.0,0.00040547,8]
[394764807,1763931082692,-500.0,0.00040547,8]
[394764808,1763931082702,-500.0,0.00040547,8]
[394764809,1763931082712,-500.0,0.00040547,8]
[394764810,1763931082722,-715.28,0.00040547,8]
[394764811,1763931082732,-500.0,0.00040547,8]
[394764812,1763931082742,-500.0,0.00040547,8]
[394764813,1763931082754,-671.96,0.00040547,8]
[394764814,1763931082763,-500.0,0.00040547,8]
[394764815,1763931082772,-500.0,0.00040547,8]
[394764816,1763931082783,-500.0,0.00040547,8]
[394764817,1763931082792,-500.0,0.00040547,8]
[394764818,1763931082802,-500.0,0.00040547,8]
[394764819,1763931082812,-500.0,0.00040547,8]
[394764820,1763931082823,-414.43143555,0.00040547,8]
[394764821,1763931082839,-85.56856445,0.00040547,8]
[394764822,1763931082850,-523.17,0.00040547,8]
[394764823,1763931082861,-200.94544877,0.00040547,8]
[394764824,1763931082873,-299.05455123,0.00040547,8]
[394764825,1763931082884,-234.7955345,0.00040547,8]
[394764826,1763931082894,-779.42,0.00040547,8]
[394764827,1763931082903,-255.13154023,0.00040547,8]
[394764831,1763931439279,500.0,0.00017,30]
[394764832,1763931634398,-251.37467877,0.0002318,2]
[394764833,1763931634495,-48.62532123,0.0002318,2]
[394764834,1763931736008,500.0,0.00017,30]
[394764838,1763931858100,-700.0,0.00020219,2]
[394764841,1763932036130,500.0,0.00017,30]
[394764842,1763932036456,500.0,0.000165,30]
[394764848,1763932045984,500.0,0.00017,30]
[394764849,1763932046367,500.0,0.000165,30]
[394764852,1763932051952,500.0,0.00017,30]
[394764853,1763932107687,166.66,0.00021956,30]
[394764878,1763932231802,-396.0,0.00020219,2]
[394764881,1763932231812,-124.22306853,0.00021283,2]
[394764892,1763932231963,-971.77693147,0.00021283,2]
[394764893,1763932231974,-5053.34,0.00021485,2]
[394764894,1763932231983,-166.66,0.00021503,2]
[394764895,1763932231992,-1200.0,0.0002219,2]
[394764896,1763932232001,-2807.08,0.00022191,2]
[394764897,1763932232010,-300.0,0.0002224,2]
[394764898,1763932232020,-195.0,0.00022241,2]
[394764900,1763932232029,-10.45932356,0.00022276,2]
[394765049,1763932237743,-989.54067644,0.00022276,2]
[394765050,1763932237753,-1096.0,0.00022403,2]
[394765051,1763932237763,-166.66,0.00022409,30]
[394765052,1763932237773,-965.87,0.00022614,2]
[394765053,1763932237782,-250.0,0.0002269,2]
[394765054,1763932237791,-166.66,0.00022862,30]
[394765055,1763932237799,-21230.97,0.00022864,2]
[394765056,1763932237808,-1000.0,0.00023111,2]
[394765057,1763932237818,-2378.83,0.00023134,2]
[394765058,1763932237827,-760000.0,0.00023174,2]
[394765059,1763932237836,-162.97117028,0.00023188,2]
[394765060,1763932237846,-1308.76196169,0.00023188,2]
[394765061,1763932237855,-338.09849255,0.00023188,2]
[394765062,1763932237865,-153.45389376,0.00023188,2]
[394765063,1763932237874,-6140.81274608,0.00023188,2]
[394765064,1763932237883,-151.0,0.00023261,2]
[394765065,1763932237892,-151.0,0.00023261,2]
[394765066,1763932237902,-151.0,0.00023261,2]
[394765067,1763932237911,-151.0,0.00023261,2]
[394765069,1763932237920,-151.0,0.00023261,2]
[394765071,1763932237930,-151.0,0.00023261,2]
[394765073,1763932237939,-151.0,0.00023261,2]
[394765075,1763932237948,-151.0,0.00023261,2]
[394765077,1763932237957,-151.0,0.00023261,2]
[394765079,1763932237966,-151.0,0.00023261,2]
[394765081,1763932237975,-151.0,0.00023261,2]
[394765083,1763932237984,-151.0,0.00023261,2]
[394765085,1763932237993,-285.24487916,0.00023261,2]
[394765087,1763932238003,-500.0,0.00023273,2]
[394765089,1763932238012,-275.15105889,0.00023273,2]
[394765090,1763932238021,-500.0,0.00023273,2]
[394765093,1763932238031,-500.0,0.00023273,2]
[394765095,1763932238040,-500.0,0.00023273,2]
[394765096,1763932238048,-500.0,0.00023274,2]
[394765099,1763932238059,-175.29172354,0.00023274,2]
[394765100,1763932238068,-592.04409675,0.00023274,2]
[394765102,1763932238077,-500.0,0.00023274,2]
[394765104,1763932238086,-500.0,0.00023274,2]
[394765106,1763932238095,-500.0,0.00023274,2]
[394765108,1763932238104,-500.0,0.00023274,2]
[394765110,1763932238113,-500.0,0.00023274,2]
[394765112,1763932238122,-500.0,0.00023274,2]
[394765114,1763932238131,-233.84866234,0.00023274,2]
[394765116,1763932238140,-1218.45664031,0.00023274,10]
[394765118,1763932238150,-1218.45664032,0.00023274,10]
[394765120,1763932238159,-9142.91155175,0.00023274,2]
[394765122,1763932238169,-500.0,0.00023274,2]
[394765124,1763932238178,-500.0,0.00023274,2]
[394765126,1763932238187,-500.0,0.00023274,2]
[394765128,1763932238196,-3648.849,0.00023274,3]
[394765130,1763932238205,-244.016,0.00023274,3]
[394765132,1763932238215,-500.0,0.00023274,2]
[394765134,1763932238225,-500.0,0.00023274,2]
[394765136,1763932238236,-500.0,0.00023274,2]
[394765138,1763932238245,-500.0,0.00023274,2]
[394765139,1763932238255,-500.0,0.00023274,2]
[394765141,1763932238264,-500.0,0.00023274,2]
[394765144,1763932238274,-500.0,0.00023274,2]
[394765145,1763932238283,-500.0,0.00023274,2]
[394765147,1763932238292,-500.0,0.00023274,2]
[394765150,1763932238302,-500.0,0.00023274,2]
[394765151,1763932238312,-500.0,0.00023274,2]
[394765153,1763932238321,-500.0,0.00023274,2]
[394765155,1763932238331,-500.0,0.00023274,2]
[394765157,1763932238340,-500.0,0.00023274,2]
[394765159,1763932238350,-500.0,0.00023274,2]
[394765161,1763932238360,-500.0,0.00023274,2]
[394765164,1763932238369,-500.0,0.00023274,2]
[394765166,1763932238379,-624.87820617,0.00023274,2]
[394765167,1763932238389,-500.0,0.00023274,2]
[394765169,1763932238399,-500.0,0.00023274,2]
[394765172,1763932238410,-299.99,0.00023274,7]
[394765173,1763932238420,-9225.85,0.00023274,5]
[394765175,1763932238438,-192.5,0.00023274,2]
[394765177,1763932238458,-9999.99,0.00023274,2]
[394765179,1763932238469,-999.99,0.00023274,2]
[394765181,1763932238478,-7413.74,0.00023274,2]
[394765184,1763932238493,-9999.99,0.00023274,2]
[394765185,1763932238503,-150.99,0.00023274,2]
[394765188,1763932238513,-150.99,0.00023274,2]
[394765212,1763932238736,-500.0,0.00023274,2]
[394765213,1763932238759,-500.0,0.00023274,2]
[394765214,1763932238770,-500.0,0.00023274,2]
[394765215,1763932238779,-500.0,0.00023274,2]
[394765216,1763932238789,-500.0,0.00023274,2]
[394765217,1763932238799,-500.0,0.00023274,2]
[394765218,1763932238808,-500.0,0.00023274,2]
[394765219,1763932238817,-500.0,0.00023274,2]
[394765220,1763932238826,-1085.1018,0.00023288,10]
[394765221,1763932238835,-166.66,0.00023314,30]
[394765222,1763932238844,-500.0,0.0002335,2]
[394765223,1763932238854,-500.0,0.00023488,2]
[394765224,1763932238863,-500.0,0.00023488,2]
[394765225,1763932238874,-1096.0,0.00023582,2]
[394765226,1763932238883,-166.66,0.00023767,30]
[394765227,1763932238892,-1000.0,0.00023821,2]
[394765228,1763932238902,-500.0,0.00023821,2]
[394765229,1763932238911,-1000.0,0.00023947,2]
[394765230,1763932238920,-420.0,0.00024161,2]
[394765231,1763932238930,-1500.0,0.00024368,2]
[394765232,1763932238940,-4001.79,0.00024658,2]
[394765233,1763932238950,-307.49644611,0.00024773,2]
[394765234,1763932238960,-500.0,0.00024773,2]
[394765235,1763932238969,-500.0,0.00024773,2]
[394765236,1763932238980,-500.0,0.00024773,2]
[394765238,1763932238990,-500.57621506,0.00024773,2]
[394765239,1763932239000,-500.0,0.00024773,2]
[394765241,1763932239010,-326.52315615,0.00024773,2]
[394765243,1763932239019,-500.0,0.00024773,2]
[394765245,1763932239029,-502.09770502,0.00024773,2]
[394765247,1763932239039,-500.0,0.00024773,2]
[394765250,1763932239050,-501.64508704,0.00024773,2]
[394765252,1763932239060,-500.0,0.00024773,2]
[394765253,1763932239069,-498.95764127,0.00024773,2]
[394765255,1763932239079,-502.35726483,0.00024773,2]
[394765258,1763932239088,-500.0,0.00024773,2]
[394765260,1763932239097,-500.0,0.00024773,2]
[394765262,1763932239107,-500.0,0.00024773,2]
[394765264,1763932239116,-500.0,0.00024773,2]
[394765266,1763932239126,-500.0,0.00024773,2]
[394765267,1763932239135,-500.0,0.00024773,2]
[394765270,1763932239145,-500.0,0.00024773,2]
[394765272,1763932239155,-500.0,0.00024773,2]
[394765273,1763932239164,-1000.0,0.00024782,2]
[394765276,1763932239174,-500.0,0.00024799,2]
[394765277,1763932239184,-500.0,0.00024799,2]
[394765279,1763932239193,-500.0,0.00024799,2]
[394765281,1763932239202,-500.0,0.00024799,2]
[394765283,1763932239211,-282.96407984,0.00024799,2]
[394765286,1763932239221,-225300.634992,0.000248,3]
[394765288,1763932239232,-1096.0,0.00024823,2]
[394765290,1763932239242,-150.55,0.0002489,2]
[394765292,1763932239251,-53557.2248604,0.000249,3]
[394765294,1763932239260,-957.02634231,0.00024916,2]
[394765296,1763932239270,-2231.55103585,0.00025146,3]
[394765298,1763932239279,-1308.76196163,0.00025156,2]
[394765300,1763932239288,-6140.81274604,0.00025156,2]
[394765302,1763932239298,-366.28624728,0.00025321,2]
[394765304,1763932239307,-500.0,0.00025321,2]
[394765306,1763932239316,-500.45067972,0.00025321,2]
[394765308,1763932239325,-503.73300027,0.00025321,2]
[394765310,1763932239334,-500.0,0.00025321,2]
[394765312,1763932239343,-312.5306204,0.00025321,2]
[394765314,1763932239353,-162.9711702,0.00025402,2]
[394765316,1763932239363,-1000.0,0.00025617,2]
[394765317,1763932239372,-338.09849254,0.00025718,2]
[394765318,1763932239382,-222.03419501,0.0002612,2]